bitfinex/quotes_BTCUSD_20241004
["timestamp","ask_amount","ask_price","bid_price","bid_amount"]
[1728028817951,0.009819,61567.0,61566.0,0.334265]
[1728028818167,0.009819,61567.0,61566.0,0.171838]
[1728028818828,0.009819,61567.0,61566.0,0.334265]
[1728028819041,0.009819,61567.0,61566.0,0.171838]
[1728028819508,0.10725527,61567.0,61566.0,0.171838]
[1728028819736,0.10725527,61567.0,61566.0,0.334265]
[1728028819977,0.009819,61567.0,61566.0,0.334265]
[1728028820439,0.0272017,61567.0,61566.0,0.334265]
[1728028820673,0.0272017,61567.0,61566.0,0.171838]
[1728028821114,0.10725527,61567.0,61566.0,0.171838]
[1728028821361,0.009819,61567.0,61566.0,0.171838]
[1728028821585,0.10807427,61567.0,61566.0,0.171838]
[1728028822059,0.010638,61567.0,61566.0,0.171838]
[1728028822531,0.13254342,61567.0,61566.0,0.171838]
[1728028823640,0.010638,61567.0,61566.0,0.171838]
[1728028824143,0.13257452,61567.0,61566.0,0.334265]
[1728028824609,0.14993428,61567.0,61566.0,0.334265]
[1728028825282,0.14993423,61567.0,61566.0,0.334265]
[1728028825517,0.02799771,61567.0,61566.0,0.334265]
[1728028825765,0.02799771,61567.0,61566.0,0.357265]
[1728028826216,0.14998351,61567.0,61566.0,0.357265]
[1728028826450,0.02799771,61567.0,61566.0,0.357265]
[1728028828590,0.02789729,61567.0,61566.0,0.357265]
[1728028829046,0.14992078,61567.0,61566.0,0.357265]
[1728028829271,0.02789693,61567.0,61566.0,0.357265]
[1728028829523,0.14991687,61567.0,61566.0,0.357265]
[1728028830219,0.12551288,61567.0,61566.0,0.357265]
[1728028830456,0.02789693,61567.0,61566.0,0.357265]
[1728028830690,0.10109492,61567.0,61566.0,0.357265]
[1728028831362,0.10109486,61567.0,61566.0,0.357265]
[1728028831839,0.10111975,61567.0,61566.0,0.357265]
[1728028832071,0.10111127,61567.0,61566.0,0.357265]
[1728028832534,0.02410276,61567.0,61566.0,0.357265]
[1728028832758,0.02410276,61567.0,61566.0,0.359265]
[1728028832759,0.09129227,61567.0,61566.0,0.359265]
[1728028832995,0.07188914,61567.0,61566.0,0.357265]
[1728028833446,0.02410276,61567.0,61566.0,0.359265]
[1728028834109,0.01910276,61567.0,61566.0,0.359265]
[1728028834552,0.02010276,61567.0,61566.0,0.362265]
[1728028835250,0.002819,61567.0,61566.0,0.362265]
[1728028835507,0.02011909,61567.0,61566.0,0.362265]
[1728028839449,0.06888196,61567.0,61566.0,0.362265]
[1728028839898,0.02011909,61567.0,61566.0,0.362265]
[1728028841733,0.002819,61567.0,61566.0,0.362265]
[1728028841963,0.02013586,61567.0,61566.0,0.362265]
[1728028842447,0.06888976,61567.0,61566.0,0.362265]
[1728028842693,0.02013586,61567.0,61566.0,0.362265]
[1728028845047,0.002819,61567.0,61566.0,0.362265]
[1728028845284,0.02017584,61567.0,61566.0,0.362265]
[1728028845970,0.02017584,61567.0,61566.0,0.62545171]
[1728028846440,0.02017584,61567.0,61566.0,0.62745171]
[1728028847181,0.01817584,61567.0,61566.0,0.62045171]
[1728028847446,0.01917584,61567.0,61566.0,0.75402682]
[1728028847684,0.02017584,61567.0,61566.0,0.444265]
[1728028847919,0.02017584,61567.0,61566.0,0.434265]
[1728028847920,0.01817584,61567.0,61566.0,0.434265]
[1728028848150,0.01917584,61567.0,61566.0,0.442265]
[1728028848379,0.001819,61567.0,61566.0,0.442265]
[1728028848616,0.01917104,61567.0,61566.0,0.434265]
[1728028848852,0.000819,61567.0,61566.0,0.434265]
[1728028849079,0.000819,61567.0,61566.0,0.462265]
[1728028849080,0.01915466,61567.0,61566.0,0.462265]
[1728028849522,0.02015466,61567.0,61566.0,0.471265]
[1728028849745,0.01915466,61567.0,61566.0,0.462265]
[1728028849999,0.01915466,61567.0,61566.0,0.470265]
[1728028850222,0.02015466,61567.0,61566.0,0.470265]
[1728028850456,0.01815466,61567.0,61566.0,0.457265]
[1728028850689,0.01915466,61567.0,61566.0,0.463265]
[1728028850912,0.02015466,61567.0,61566.0,0.469265]
[1728028851133,0.01915466,61567.0,61566.0,0.463265]
[1728028851359,0.02015466,61567.0,61566.0,0.468265]
[1728028851599,0.01915466,61567.0,61566.0,0.462265]
[1728028851823,0.01815466,61567.0,61566.0,0.457265]
[1728028852300,0.01815466,61567.0,61566.0,0.460265]
[1728028853967,0.36325413,61567.0,61566.0,0.008638]
[1728028854207,0.50939138,61567.0,61566.0,0.005638]
[1728028854429,0.36325413,61567.0,61566.0,0.001638]
[1728028854884,0.34591847,61567.0,61566.0,0.003638]
[1728028855143,0.36321008,61567.0,61566.0,0.001638]
[1728028855400,0.37021008,61567.0,61566.0,0.003638]
[1728028855624,0.37821008,61567.0,61566.0,0.003638]
[1728028855870,0.37021008,61567.0,61566.0,0.002638]
[1728028856738,0.36321008,61567.0,61566.0,0.001638]
[1728028856962,0.37721008,61567.0,61566.0,0.002638]
[1728028857184,0.37721008,61567.0,61566.0,0.001638]
[1728028857633,0.37721008,61567.0,61566.0,0.002638]
[1728028857634,0.39121008,61567.0,61566.0,0.002638]
[1728028857853,0.36321008,61567.0,61566.0,0.001638]
[1728028858325,0.36321008,61567.0,61566.0,0.003638]
[1728028858326,0.39121008,61567.0,61566.0,0.003638]
[1728028858794,0.39114325,61567.0,61566.0,0.003638]
[1728028859235,0.37714325,61567.0,61566.0,0.002638]
[1728028859676,0.39114325,61567.0,61566.0,0.003638]
[1728028859906,0.39114325,61567.0,61566.0,0.002638]
[1728028860151,0.37714325,61567.0,61566.0,0.002638]
[1728028860412,0.37714325,61567.0,61566.0,0.003638]
[1728028860413,0.39114325,61567.0,61566.0,0.003638]
[1728028860657,0.39114325,61567.0,61566.0,0.002638]
[1728028860865,0.40514325,61567.0,61566.0,0.003638]
[1728028861297,0.61842044,61567.0,61566.0,0.003638]
[1728028861807,0.36242611,61557.0,61556.0,0.001638]
[1728028862064,0.52564221,61557.0,61556.0,0.001638]
[1728028862307,0.44274159,61557.0,61556.0,0.001638]
[1728028862553,0.44474159,61557.0,61556.0,0.001638]
[1728028862797,0.63674736,61557.0,61556.0,0.001638]
[1728028863030,0.53494159,61557.0,61556.0,0.001638]
[1728028863271,0.54394159,61557.0,61556.0,0.001638]
[1728028863483,0.71005925,61557.0,61556.0,0.001638]
[1728028863715,0.69905925,61557.0,61556.0,0.001638]
[1728028863953,0.86224596,61557.0,61556.0,0.001638]
[1728028864173,0.53494159,61557.0,61556.0,0.001638]
[1728028864407,0.54594159,61557.0,61556.0,0.002638]
[1728028864617,0.54594159,61557.0,61556.0,0.001638]
[1728028864841,0.53694159,61557.0,61556.0,0.001638]
[1728028865062,0.66494159,61557.0,61556.0,0.002638]
[1728028865285,0.66494159,61557.0,61556.0,0.001638]
[1728028865286,0.8141283,61557.0,61556.0,0.001638]
[1728028865573,0.8141283,61557.0,61549.0,0.001638]
[1728028865574,0.164469,61550.0,61549.0,0.001638]
[1728028865818,0.5372816,61550.0,61549.0,0.001638]
[1728028866039,0.6003723,61550.0,61549.0,0.001638]
[1728028866734,0.5983723,61550.0,61549.0,0.001638]
[1728028866972,0.43316889,61550.0,61549.0,0.001638]
[1728028867231,0.44716889,61550.0,61549.0,0.001638]
[1728028867446,0.44720075,61550.0,61549.0,0.001638]
[1728028867719,0.42994411,61550.0,61549.0,0.001638]
[1728028867944,0.44717155,61550.0,61549.0,0.001638]
[1728028868156,0.56847834,61550.0,61549.0,0.001638]
[1728028868373,0.77114173,61550.0,61549.0,0.001638]
[1728028868605,0.83423243,61550.0,61549.0,0.001638]
[1728028869083,0.83623243,61550.0,61549.0,0.001638]
[1728028869329,0.71292564,61550.0,61549.0,0.001638]
[1728028869550,0.54973893,61550.0,61549.0,0.001638]
[1728028870024,0.42616382,61550.0,61549.0,0.001638]
[1728028870241,0.41145506,61550.0,61549.0,0.001638]
[1728028871209,0.31447312,61550.0,61549.0,0.001638]
[1728028871434,0.36295043,61550.0,61549.0,0.001638]
[1728028871675,0.28165043,61550.0,61549.0,0.001638]
[1728028872123,0.44483714,61550.0,61549.0,0.001638]
[1728028872348,0.23317312,61550.0,61549.0,0.001638]
[1728028874301,0.20769644,61550.0,61549.0,0.001638]
[1728028875226,0.39615062,61550.0,61549.0,0.001638]
[1728028875440,0.56895062,61550.0,61549.0,0.001638]
[1728028875663,0.73213733,61550.0,61549.0,0.001638]
[1728028876122,0.71813733,61550.0,61549.0,0.001638]
[1728028876352,0.70413733,61550.0,61549.0,0.001638]
[1728028876578,0.71813733,61550.0,61549.0,0.001638]
[1728028876803,0.73213733,61550.0,61549.0,0.001638]
[1728028877035,0.71813733,61550.0,61549.0,0.001638]
[1728028877496,0.73213733,61550.0,61549.0,0.001638]
[1728028877943,0.71813733,61550.0,61549.0,0.001638]
[1728028878192,0.73209558,61550.0,61549.0,0.001638]
[1728028878646,0.70090989,61550.0,61549.0,0.001638]
[1728028878871,0.71490989,61550.0,61549.0,0.001638]
[1728028879307,0.70090989,61550.0,61549.0,0.001638]
[1728028879862,0.71490989,61550.0,61549.0,0.001638]
[1728028880545,0.73209557,61550.0,61549.0,0.001638]
[1728028880778,0.71490989,61550.0,61549.0,0.001638]
[1728028881213,0.62340989,61550.0,61549.0,0.001638]
[1728028883010,0.54210989,61550.0,61549.0,0.001638]
[1728028883716,0.55936838,61550.0,61549.0,0.001638]
[1728028884823,0.58484453,61550.0,61549.0,0.001638]
[1728028885978,0.68487439,61550.0,61549.0,0.001638]
[1728028886291,0.8142517,61550.0,61549.0,0.001638]
[1728028886536,0.85936877,61550.0,61549.0,0.001638]
[1728028886780,0.86136877,61550.0,61549.0,0.001638]
[1728028887003,0.89645947,61550.0,61549.0,0.001638]
[1728028887253,0.91045947,61550.0,61549.0,0.001638]
[1728028887493,0.91045947,61550.0,61544.0,0.00250283]
[1728028887494,0.45093618,61545.0,61544.0,0.00250283]
[1728028887747,0.47022453,61545.0,61544.0,0.00250283]
[1728028887980,0.53331523,61545.0,61544.0,0.00250283]
[1728028888724,0.54731523,61545.0,61544.0,0.00250283]
[1728028889440,0.48422453,61545.0,61544.0,0.00250283]
[1728028889668,0.49822453,61545.0,61544.0,0.00250283]
[1728028889881,0.66141124,61545.0,61544.0,0.00250283]
[1728028890098,0.72450194,61545.0,61544.0,0.00250283]
[1728028890537,0.74998108,61545.0,61544.0,0.00250283]
[1728028890758,0.72450194,61545.0,61544.0,0.00250283]
[1728028891009,0.90170194,61545.0,61544.0,0.00250283]
[1728028891754,0.83699692,61545.0,61544.0,0.00250283]
[1728028891984,0.77390622,61545.0,61544.0,0.00250283]
[1728028892192,0.83699692,61545.0,61544.0,0.00250283]
[1728028892422,0.88543517,61545.0,61544.0,0.00250283]
[1728028892641,0.90965429,61545.0,61544.0,0.00250283]
[1728028892861,0.82927524,61545.0,61544.0,0.00250283]
[1728028893087,0.84663547,61545.0,61544.0,0.00250283]
[1728028893527,0.93405074,61545.0,61544.0,0.00250283]
[1728028893748,0.95953,61545.0,61544.0,0.00250283]
[1728028894670,0.002,61542.0,61538.0,0.001636]
[1728028894912,0.38624716,61539.0,61538.0,0.001636]
[1728028895147,0.50066453,61539.0,61538.0,0.001636]
[1728028895366,0.40360739,61539.0,61538.0,0.001636]
[1728028895595,0.50066453,61539.0,61538.0,0.001636]
[1728028895826,0.50066672,61539.0,61538.0,0.001636]
[1728028896549,0.40360958,61539.0,61538.0,0.001636]
[1728028896771,0.53793101,61539.0,61538.0,0.001636]
[1728028896999,0.56279778,61539.0,61538.0,0.001636]
[1728028897221,0.57679778,61539.0,61538.0,0.001636]
[1728028897714,0.41760958,61539.0,61538.0,0.001636]
[1728028898143,0.43160958,61539.0,61538.0,0.001636]
[1728028899336,0.20773831,61539.0,61538.0,0.001636]
[1728028899549,0.42875477,61539.0,61538.0,0.001636]
[1728028899778,0.33148747,61539.0,61538.0,0.001636]
[1728028900489,0.30348747,61539.0,61538.0,0.001636]
[1728028900748,0.41275477,61539.0,61538.0,0.001636]
[1728028900970,0.42375477,61539.0,61538.0,0.001636]
[1728028901678,0.44799356,61539.0,61538.0,0.001636]
[1728028902413,0.43075325,61539.0,61538.0,0.001636]
[1728028902671,0.3265111,61539.0,61538.0,0.001636]
[1728028902899,0.30924716,61539.0,61538.0,0.001636]
[1728028903147,0.32652072,61539.0,61538.0,0.001636]
[1728028905075,0.35199958,61539.0,61538.0,0.001636]
[1728028905808,0.33472602,61539.0,61538.0,0.001636]
[1728028906044,0.35203001,61539.0,61538.0,0.001636]
[1728028906720,0.47236224,61539.0,61538.0,0.001636]
[1728028907175,0.32655115,61539.0,61538.0,0.001636]
[1728028909158,0.32656041,61539.0,61538.0,0.001636]
[1728028910095,0.20281125,61539.0,61538.0,0.079936]
[1728028910378,0.20281125,61539.0,61538.0,0.173536]
[1728028912263,0.04031325,61539.0,61538.0,0.173536]
[1728028912480,0.04037306,61539.0,61538.0,0.173536]
[1728028912939,0.20287106,61539.0,61538.0,0.173536]
[1728028913168,0.20286056,61539.0,61538.0,0.173536]
[1728028915509,0.22833695,61539.0,61538.0,0.173536]
[1728028917525,0.20286056,61539.0,61538.0,0.173536]
[1728028918877,0.185498,61539.0,61538.0,0.173536]
[1728028919135,0.20287604,61539.0,61538.0,0.173536]
[1728028919884,0.34910877,61539.0,61538.0,0.173536]
[1728028920347,0.34910877,61539.0,61538.0,0.001636]
[1728028920348,0.20287604,61539.0,61538.0,0.001636]
[1728028920582,0.22835368,61539.0,61538.0,0.001636]
[1728028921789,0.20287604,61539.0,61538.0,0.001636]
[1728028922478,0.19087604,61539.0,61538.0,0.001636]
[1728028922699,0.19387604,61539.0,61538.0,0.001636]
[1728028922920,0.20787604,61539.0,61538.0,0.001636]
[1728028923142,0.32576536,61539.0,61538.0,0.001636]
[1728028923375,0.33976536,61539.0,61538.0,0.001636]
[1728028923610,0.54234727,61539.0,61538.0,0.001636]
[1728028924557,0.54232275,61539.0,61538.0,0.001636]
[1728028925015,0.56780283,61539.0,61538.0,0.001636]
[1728028926006,0.55380283,61539.0,61538.0,0.001636]
[1728028926960,0.53980283,61539.0,61538.0,0.001636]
[1728028927214,0.42191351,61539.0,61538.0,0.001636]
[1728028929057,0.39643343,61539.0,61538.0,0.001636]
[1728028929558,0.39643343,61539.0,61528.0,0.24520421]
[1728028929559,0.1977,61538.0,61528.0,0.24520421]
[1728028929822,0.35110591,61529.0,61528.0,0.24520421]
[1728028930046,0.36845943,61529.0,61528.0,0.24520421]
[1728028930508,0.162527,61528.0,61527.0,0.001638]
[1728028930765,0.17988052,61528.0,61527.0,0.001638]
[1728028931007,0.17993143,61528.0,61527.0,0.173838]
[1728028931226,0.162527,61528.0,61527.0,0.173838]
[1728028931467,0.34446088,61528.0,61527.0,0.173838]
[1728028931694,0.35646088,61528.0,61527.0,0.173838]
[1728028932195,0.34446088,61528.0,61527.0,0.173838]
[1728028932486,0.34443741,61528.0,61527.0,0.173838]
[1728028932940,0.36443741,61528.0,61527.0,0.173838]
[1728028933172,0.35343741,61528.0,61527.0,0.173838]
[1728028933405,0.36043741,61528.0,61527.0,0.173838]
[1728028933638,0.19592825,61528.0,61527.0,0.173838]
[1728028934111,0.29372996,61528.0,61527.0,0.173838]
[1728028934598,0.19592825,61528.0,61527.0,0.173838]
[1728028936023,0.19592825,61528.0,61527.0,0.079938]
[1728028938359,0.18692825,61528.0,61527.0,0.079938]
[1728028938616,0.19692825,61528.0,61527.0,0.079938]
[1728028938880,0.18992825,61528.0,61527.0,0.079938]
[1728028939121,0.18792825,61528.0,61527.0,0.079938]
[1728028939356,0.18992825,61528.0,61527.0,0.079938]
[1728028939817,0.19792825,61528.0,61527.0,0.079938]
[1728028941018,0.22338764,61528.0,61527.0,0.079938]
[1728028941240,0.24076576,61528.0,61527.0,0.079938]
[1728028941487,0.23076576,61528.0,61527.0,0.079938]
[1728028941959,0.23576576,61528.0,61527.0,0.079938]
[1728028942176,0.21838766,61528.0,61527.0,0.079938]
[1728028942405,0.23038766,61528.0,61527.0,0.079938]
[1728028942678,0.23038766,61528.0,61527.0,0.179538]
[1728028942906,0.21738766,61528.0,61527.0,0.179538]
[1728028943132,0.05486066,61528.0,61527.0,0.179538]
[1728028943364,0.02937812,61528.0,61527.0,0.179538]
[1728028943591,0.17990512,61528.0,61527.0,0.179538]
[1728028943813,0.26494838,61528.0,61527.0,0.179538]
[1728028944067,0.19190512,61528.0,61527.0,0.179538]
[1728028944306,0.3022984,61528.0,61527.0,0.179538]
[1728028944538,0.20490512,61528.0,61527.0,0.179538]
[1728028944780,0.19190512,61528.0,61527.0,0.179538]
[1728028945009,0.15525335,61528.0,61527.0,0.179538]
[1728028945225,0.14325335,61528.0,61527.0,0.179538]
[1728028945442,0.30578035,61528.0,61527.0,0.179538]
[1728028945661,0.30278035,61528.0,61527.0,0.179538]
[1728028945878,0.30678035,61528.0,61527.0,0.179538]
[1728028946104,0.30878035,61528.0,61527.0,0.179538]
[1728028947010,0.30876482,61528.0,61527.0,0.179538]
[1728028947484,0.28328417,61528.0,61527.0,0.179538]
[1728028947704,0.12075717,61528.0,61527.0,0.179538]
[1728028947981,0.28328417,61528.0,61527.0,0.179538]
[1728028948907,0.18588959,61528.0,61527.0,0.179538]
[1728028949805,0.18388959,61528.0,61527.0,0.179538]
[1728028950280,0.2852888,61528.0,61527.0,0.179538]
[1728028950778,0.18788959,61528.0,61527.0,0.179538]
[1728028951010,0.18388959,61528.0,61527.0,0.179538]
[1728028951264,0.23858582,61528.0,61527.0,0.179538]
[1728028951503,0.26293394,61528.0,61527.0,0.179538]
[1728028951730,0.25293394,61528.0,61527.0,0.179538]
[1728028951961,0.18988959,61528.0,61527.0,0.179538]
[1728028953147,0.28728938,61528.0,61527.0,0.179538]
[1728028953847,0.12476238,61528.0,61527.0,0.179538]
[1728028954075,0.12476238,61528.0,61527.0,0.342068]
[1728028954531,0.12476238,61528.0,61527.0,0.179538]
[1728028954763,0.15024257,61528.0,61527.0,0.342068]
[1728028954992,0.10154161,61528.0,61527.0,0.342068]
[1728028955235,0.05284278,61528.0,61527.0,0.342068]
[1728028955706,0.10154161,61528.0,61527.0,0.342068]
[1728028956606,0.10154161,61528.0,61527.0,0.179538]
[1728028956897,0.24670602,61528.0,61527.0,0.179538]
[1728028957117,0.21532157,61528.0,61527.0,0.179538]
[1728028957347,0.28837095,61528.0,61527.0,0.179538]
[1728028957566,0.41213004,61528.0,61527.0,0.179538]
[1728028958032,0.4121511,61528.0,61527.0,0.179538]
[1728028960002,0.41217323,61528.0,61527.0,0.179538]
[1728028960246,0.33909275,61528.0,61527.0,0.179538]
[1728028960917,0.32176628,61528.0,61527.0,0.179538]
[1728028961126,0.33909834,61528.0,61527.0,0.179538]
[1728028961344,0.43655361,61528.0,61527.0,0.179538]
[1728028961573,0.46088419,61528.0,61527.0,0.179538]
[1728028962011,0.33909834,61528.0,61527.0,0.179538]
[1728028962229,0.46088419,61528.0,61527.0,0.179538]
[1728028963816,0.33909834,61528.0,61527.0,0.001638]
[1728028964053,0.31361815,61528.0,61527.0,0.001638]
[1728028964946,0.30761815,61528.0,61527.0,0.001638]
[1728028965165,0.31061815,61528.0,61527.0,0.001638]
[1728028965592,0.31761815,61528.0,61527.0,0.001638]
[1728028965799,0.31061815,61528.0,61527.0,0.001638]
[1728028966011,0.31261815,61528.0,61527.0,0.001638]
[1728028966237,0.31961815,61528.0,61527.0,0.001638]
[1728028966950,0.34509924,61528.0,61527.0,0.001638]
[1728028967164,0.31961815,61528.0,61527.0,0.001638]
[1728028967835,0.63896425,61528.0,61527.0,0.001638]
[1728028968078,0.62996425,61528.0,61527.0,0.001638]
[1728028968595,0.46955335,61528.0,61527.0,0.001638]
[1728028968823,0.47955335,61528.0,61527.0,0.001638]
[1728028969062,0.46855335,61528.0,61527.0,0.001638]
[1728028969297,0.47255335,61528.0,61527.0,0.001638]
[1728028969519,0.48555335,61528.0,61527.0,0.001638]
[1728028969739,0.31661815,61528.0,61527.0,0.001638]
[1728028969962,0.31662708,61528.0,61527.0,0.001638]
[1728028970409,0.31662714,61528.0,61527.0,0.001638]
[1728028970646,0.32911119,61528.0,61527.0,0.001638]
[1728028971153,0.35711119,61528.0,61527.0,0.001638]
[1728028971386,0.34311119,61528.0,61527.0,0.001638]
[1728028971823,0.35711119,61528.0,61527.0,0.001638]
[1728028976414,0.33977014,61528.0,61527.0,0.001638]
[1728028976632,0.35706612,61528.0,61527.0,0.001638]
[1728028976852,0.50764503,61528.0,61527.0,0.001638]
[1728028977077,0.35706612,61528.0,61527.0,0.001638]
[1728028977537,0.33158207,61528.0,61527.0,0.001638]
[1728028977983,0.16254,61523.0,61522.0,0.001636]
[1728028978201,0.40189507,61523.0,61522.0,0.24684021]
[1728028978443,0.40189507,61523.0,61522.0,0.001636]
[1728028979183,0.51943232,61523.0,61522.0,0.001636]
[1728028979405,0.41589507,61523.0,61522.0,0.001636]
[1728028979643,0.51129507,61523.0,61522.0,0.001636]
[1728028979902,0.51124625,61523.0,61522.0,0.001636]
[1728028980388,0.61124625,61523.0,61522.0,0.001636]
[1728028980627,0.75659108,61523.0,61522.0,0.001636]
[1728028980863,0.79607802,61523.0,61522.0,0.001636]
[1728028981127,0.78407802,61523.0,61522.0,0.001636]
[1728028981348,0.77507802,61523.0,61522.0,0.001636]
[1728028981561,0.80307802,61523.0,61522.0,0.001636]
[1728028981801,0.77759108,61523.0,61522.0,0.001636]
[1728028982013,0.77759108,61523.0,61507.0,0.0759]
[1728028982014,0.28632309,61514.0,61507.0,0.0759]
[1728028982516,0.30357025,61514.0,61507.0,0.0759]
[1728028982791,0.16258,61508.0,61507.0,0.0759]
[1728028983015,0.30358625,61508.0,61507.0,0.0759]
[1728028983446,0.162583,61507.0,61506.0,0.0992]
[1728028983686,0.162585,61506.0,61504.0,0.001638]
[1728028983917,0.17983216,61506.0,61504.0,0.001638]
[1728028985104,0.18583216,61506.0,61504.0,0.001638]
[1728028985334,0.162585,61506.0,61504.0,0.001638]
[1728028985566,0.18982398,61506.0,61504.0,0.001638]
[1728028986066,0.17982398,61506.0,61504.0,0.001638]
[1728028986299,0.38856652,61506.0,61504.0,0.001638]
[1728028986523,0.31558307,61506.0,61504.0,0.001638]
[1728028986747,0.26480778,61506.0,61505.0,0.096638]
[1728028986979,0.32458307,61506.0,61505.0,0.096638]
[1728028987213,0.39756771,61506.0,61505.0,0.096638]
[1728028987680,0.38556771,61506.0,61505.0,0.096638]
[1728028987925,0.39756771,61506.0,61505.0,0.096638]
[1728028988152,0.39755475,61506.0,61505.0,0.096638]
[1728028988390,0.31258307,61506.0,61505.0,0.096638]
[1728028988625,0.38552561,61506.0,61505.0,0.096638]
[1728028988848,0.32255393,61506.0,61505.0,0.096638]
[1728028989330,0.41984951,61506.0,61505.0,0.096638]
[1728028989585,0.40984951,61506.0,61505.0,0.001638]
[1728028990076,0.40982674,61506.0,61505.0,0.001638]
[1728028990565,0.42631731,61506.0,61505.0,0.001638]
[1728028990793,0.43831731,61506.0,61505.0,0.001638]
[1728028991261,0.43831731,61506.0,61505.0,0.080538]
[1728028991262,0.3290445,61506.0,61505.0,0.080538]
[1728028991485,0.42398896,61506.0,61505.0,0.080538]
[1728028991730,0.3410445,61506.0,61505.0,0.080538]
[1728028991964,0.40198386,61506.0,61505.0,0.080538]
[1728028992199,0.3500394,61506.0,61505.0,0.080538]
[1728028992447,0.42297117,61506.0,61505.0,0.080538]
[1728028992688,0.3500394,61506.0,61505.0,0.080538]
[1728028992934,0.3500394,61506.0,61505.0,0.001638]
[1728028993639,0.32454883,61506.0,61505.0,0.001638]
[1728028993874,0.3577096,61506.0,61505.0,0.001638]
[1728028994125,0.3697096,61506.0,61505.0,0.001638]
[1728028994411,0.32654883,61506.0,61505.0,0.001638]
[1728028994637,0.34103958,61506.0,61505.0,0.001638]
[1728028995101,0.45845432,61506.0,61505.0,0.001638]
[1728028995331,0.35409829,61506.0,61505.0,0.001638]
[1728028995604,0.47571777,61506.0,61505.0,0.001638]
[1728028995832,0.46271777,61506.0,61505.0,0.001638]
[1728028996057,0.53114382,61506.0,61505.0,0.001638]
[1728028996282,0.47671777,61506.0,61505.0,0.001638]
[1728028996972,0.44031118,61506.0,61505.0,0.001638]
[1728028997197,0.35609829,61506.0,61505.0,0.001638]
[1728028998400,0.35611732,61506.0,61505.0,0.001638]
[1728028998889,0.33883484,61506.0,61505.0,0.001638]
[1728028999337,0.3561201,61506.0,61505.0,0.001638]
[1728029000693,0.3561201,61506.0,61505.0,0.080538]
[1728029000930,0.23236101,61506.0,61505.0,0.175538]
[1728029001142,0.40472885,61506.0,61505.0,0.175538]
[1728029001354,0.3561201,61506.0,61505.0,0.175538]
[1728029001811,0.41174797,61506.0,61505.0,0.175538]
[1728029002101,0.42906065,61506.0,61505.0,0.175538]
[1728029002318,0.41508067,61506.0,61505.0,0.175538]
[1728029003006,0.32914752,61506.0,61505.0,0.175538]
[1728029003223,0.40208295,61506.0,61505.0,0.175538]
[1728029003432,0.34114752,61506.0,61505.0,0.175538]
[1728029003646,0.60593462,61506.0,61505.0,0.001638]
[1728029003862,0.35514752,61506.0,61505.0,0.001638]
[1728029004312,0.47670277,61506.0,61505.0,0.001638]
[1728029004527,0.32965677,61506.0,61505.0,0.001638]
[1728029004740,0.46075728,61506.0,61505.0,0.001638]
[1728029005216,0.47475728,61506.0,61505.0,0.001638]
[1728029005655,0.46075728,61506.0,61505.0,0.001638]
[1728029005882,0.31565677,61506.0,61505.0,0.001638]
[1728029006535,0.30365677,61506.0,61505.0,0.001638]
[1728029006961,0.33165677,61506.0,61505.0,0.001638]
[1728029007202,0.31765677,61506.0,61505.0,0.001638]
[1728029007651,0.34314844,61506.0,61505.0,0.001638]
[1728029007880,0.35714844,61506.0,61505.0,0.001638]
[1728029008333,0.33983576,61506.0,61505.0,0.001638]
[1728029008632,0.50328785,61506.0,61505.0,0.001638]
[1728029008877,0.47779618,61506.0,61505.0,0.001638]
[1728029010287,0.47779618,61506.0,61505.0,0.096638]
[1728029010288,0.20791868,61506.0,61505.0,0.096638]
[1728029010540,0.30531256,61506.0,61505.0,0.175538]
[1728029011247,0.20791868,61506.0,61505.0,0.175538]
[1728029011478,0.17991868,61506.0,61505.0,0.175538]
[1728029011714,0.17991868,61506.0,61505.0,0.080538]
[1728029011954,0.19391868,61506.0,61505.0,0.001638]
[1728029012192,0.36555194,61506.0,61505.0,0.001638]
[1728029012422,0.36333814,61506.0,61505.0,0.001638]
[1728029013159,0.35733814,61506.0,61505.0,0.001638]
[1728029013396,0.36433814,61506.0,61505.0,0.001638]
[1728029013633,0.55311309,61506.0,61505.0,0.001638]
[1728029013878,0.53811309,61506.0,61505.0,0.001638]
[1728029014610,0.54277941,61506.0,61505.0,0.001638]
[1728029014859,0.7127002,61506.0,61505.0,0.001638]
[1728029015383,0.7027002,61506.0,61505.0,0.001638]
[1728029015642,0.53815519,61506.0,61505.0,0.001638]
[1728029016130,0.55115519,61506.0,61505.0,0.001638]
[1728029016365,0.56515519,61506.0,61505.0,0.001638]
[1728029017524,0.53966501,61506.0,61505.0,0.001638]
[1728029017997,0.53965182,61506.0,61505.0,0.001638]
[1728029018247,0.20694759,61506.0,61505.0,0.094838]
[1728029018492,0.189585,61506.0,61505.0,0.094838]
[1728029018731,0.20694786,61506.0,61505.0,0.094838]
[1728029019436,0.35324543,61506.0,61505.0,0.094838]
[1728029020199,0.35324543,61506.0,61505.0,0.176438]
[1728029020431,0.34024543,61506.0,61505.0,0.176438]
[1728029020663,0.17994786,61506.0,61505.0,0.176438]
[1728029020890,0.22143768,61506.0,61505.0,0.176438]
[1728029021136,0.21443768,61506.0,61505.0,0.176438]
[1728029021391,0.35174478,61506.0,61505.0,0.176438]
[1728029021616,0.36674478,61506.0,61505.0,0.176438]
[1728029021848,0.36274478,61506.0,61505.0,0.176438]
[1728029022081,0.35174478,61506.0,61505.0,0.176438]
[1728029022321,0.21344721,61506.0,61505.0,0.176438]
[1728029023228,0.21944721,61506.0,61505.0,0.176438]
[1728029027569,0.19395739,61506.0,61505.0,0.176438]
[1728029028351,0.29391452,61506.0,61505.0,0.094838]
[1728029028584,0.29391452,61506.0,61505.0,0.001638]
[1728029028823,0.29391452,61506.0,61494.0,0.094838]
[1728029028824,0.262614,61495.0,61494.0,0.001638]
[1728029029071,0.27994352,61495.0,61494.0,0.001638]
[1728029029310,0.46871847,61495.0,61494.0,0.001638]
[1728029030506,0.27994352,61495.0,61494.0,0.001638]
[1728029030745,0.2194398,61495.0,61494.0,0.001638]
[1728029030989,0.21937184,61495.0,61494.0,0.001638]
[1728029031226,0.23237184,61495.0,61494.0,0.001638]
[1728029031453,0.20537184,61495.0,61494.0,0.001638]
[1728029031716,0.21937184,61495.0,61494.0,0.001638]
[1728029031957,0.19387556,61495.0,61494.0,0.001638]
[1728029032856,0.19187556,61495.0,61494.0,0.001638]